fUSD/lending_fUSD_20240828
["ID","MTS","AMOUNT","RATE_DAILY","PERIOD"]
[336504905,1724885156810,-500.0,0.00039452,120]
[336504906,1724885156857,-600.97,0.00039452,120]
[336504907,1724885156916,-500.0,0.00039452,120]
[336504908,1724885156963,-1274.5,0.00039452,120]
[336504909,1724885157009,-625.92,0.00039452,120]
[336504910,1724885157064,-2864.69,0.00039452,120]
[336504911,1724885157111,-2068.13,0.00039452,120]
[336504912,1724885157167,-1355.07,0.00039452,120]
[336504913,1724885157212,-500.0,0.00039452,120]
[336504914,1724885157259,-1321.13,0.00039452,120]
[336504915,1724885157305,-1147.74,0.00039452,120]
[336504916,1724885157349,-500.0,0.00039452,120]
[336504917,1724885157395,-2609.87,0.00039452,120]
[336504918,1724885157440,-500.0,0.00039452,120]
[336504919,1724885157484,-603.42,0.00039452,120]
[336504920,1724885157527,-505.56565208,0.00039452,120]
[336504921,1724885157570,-1028.3,0.00039452,120]
[336504922,1724885157615,-724.47,0.00039452,120]
[336504923,1724885157660,-500.0,0.00039452,120]
[336504924,1724885157704,-500.0,0.00039452,120]
[336504925,1724885157748,-3115.98,0.00039452,120]
[336504926,1724885157794,-856.67,0.00039452,120]
[336504927,1724885157839,-500.0,0.00039452,120]
[336504928,1724885157892,-500.0,0.00039452,120]
[336504929,1724885157939,-2181.83,0.00039452,120]
[336504930,1724885157991,-775.96,0.00039452,120]
[336504931,1724885158037,-1912.04,0.00039452,120]
[336504932,1724885158083,-500.0,0.00039452,120]
[336504933,1724885158127,-1614.96,0.00039452,120]
[336504934,1724885158175,-500.0,0.00039452,120]
[336504935,1724885158221,-1843.18,0.00039452,120]
[336504936,1724885158265,-771.68,0.00039452,120]
[336504937,1724885158308,-645.05,0.00039452,120]
[336504938,1724885158350,-3827.27,0.00039452,120]
[336504939,1724885158394,-940.61,0.00039452,120]
[336504940,1724885158436,-500.0,0.00039452,90]
[336504941,1724885158480,-500.0,0.00039452,120]
[336504942,1724885158522,-500.0,0.00039452,120]
[336504943,1724885158564,-918.32,0.00039452,120]
[336504944,1724885158609,-3256.33,0.00039452,120]
[336504945,1724885158654,-2052.4,0.00039452,120]
[336504946,1724885158699,-500.0,0.00039452,120]
[336504947,1724885158742,-1843.37,0.00039452,120]
[336504948,1724885158795,-523.56,0.00039452,120]
[336504949,1724885158840,-500.0,0.00039452,120]
[336504950,1724885158885,-500.0,0.00039452,120]
[336504951,1724885158934,-500.0,0.00039452,120]
[336504952,1724885158984,-1860.48,0.00039452,120]
[336504953,1724885159034,-407.85381762,0.00039452,120]
[336504954,1724885159082,-500.0,0.00039452,120]
[336504955,1724885159129,-1211.62,0.00039452,120]
[336504956,1724885159185,-565.93,0.00039452,120]
[336504957,1724885159232,-3392.09,0.00039452,120]
[336504958,1724885159287,-2248.15,0.00039452,120]
[336504959,1724885159331,-2080.06,0.00039452,120]
[336504960,1724885159387,-150.0,0.00039452,120]
[336504961,1724885159438,-500.0,0.00039452,120]
[336504962,1724885159486,-1270.94,0.00039452,120]
[336504963,1724885159533,-2921.42,0.00039452,120]
[336504964,1724885159578,-500.0,0.00039452,120]
[336504965,1724885159624,-1000.55,0.00039452,120]
[336504966,1724885159669,-2187.2,0.00039452,120]
[336504967,1724885159713,-1801.84,0.00039452,120]
[336504968,1724885159759,-657.58,0.00039452,120]
[336504969,1724885159808,-500.0,0.00039452,120]
[336504970,1724885159853,-1454.75,0.00039452,120]
[336504971,1724885159898,-3322.66,0.00039452,120]
[336504972,1724885159943,-500.0,0.00039452,120]
[336504973,1724885159994,-500.0,0.00039452,120]
[336504974,1724885160040,-500.0,0.00039452,120]
[336504975,1724885160086,-500.0,0.00039452,120]
[336504976,1724885160134,-500.0,0.00039452,120]
[336504977,1724885160181,-500.0,0.00039452,120]
[336504978,1724885160236,-500.0,0.00039452,120]
[336504979,1724885160289,-618.26,0.00039452,120]
[336504980,1724885160342,-668.42,0.00039452,120]
[336504981,1724885160388,-589.65,0.00039452,120]
[336504982,1724885160435,-500.0,0.00039452,120]
[336504983,1724885160480,-593.94,0.00039452,120]
[336504984,1724885160527,-883.0,0.00039452,120]
[336504985,1724885160571,-500.0,0.00039452,120]
[336504986,1724885160614,-1729.26,0.00039452,120]
[336504987,1724885160657,-1436.8,0.00039452,120]
[336504988,1724885160709,-1369.56,0.00039452,120]
[336504989,1724885160752,-500.0,0.00039452,120]
[336504990,1724885160794,-1724.07,0.00039452,120]
[336504991,1724885160839,-3045.35,0.00039452,120]
[336504992,1724885160889,-500.0,0.00039452,120]
[336504993,1724885160939,-1773.01,0.00039452,120]
[336504994,1724885160991,-500.0,0.00039452,120]
[336504995,1724885161035,-721.43,0.00039452,120]
[336504996,1724885161077,-2134.71,0.00039452,120]
[336504997,1724885161119,-500.0,0.00039452,120]
[336504998,1724885161163,-895.91,0.00039452,120]
[336504999,1724885161208,-500.0,0.00039452,120]
[336505000,1724885161254,-659.85,0.00039452,120]
[336505001,1724885161296,-657.62,0.00039452,120]
[336505002,1724885161339,-1447.73,0.00039452,120]
[336505003,1724885161381,-2609.9,0.00039452,120]
[336505004,1724885161423,-1198.48,0.00039452,120]
[336505005,1724885161465,-979.34,0.00039452,120]
[336505006,1724885161799,-1267.24,0.00039452,120]
[336505007,1724885161848,-2181.47,0.00039452,120]
[336505008,1724885161894,-2580.18,0.00039452,120]
[336505009,1724885161947,-500.0,0.00039452,120]
[336505010,1724885161993,-218.50068097,0.00039452,120]
[336505011,1724885162037,-500.0,0.00039452,120]
[336505012,1724885162082,-3517.69,0.00039452,120]
[336505013,1724885162126,-798.91,0.00039452,120]
[336505014,1724885162173,-500.0,0.00039452,120]
[336505015,1724885162219,-560.94,0.00039452,120]
[336505016,1724885162264,-2185.21,0.00039452,120]
[336505017,1724885162308,-500.0,0.00039452,120]
[336505018,1724885162352,-500.0,0.00039452,120]
[336505019,1724885162394,-1243.83,0.00039452,120]
[336505020,1724885162437,-2570.86,0.00039452,120]
[336505021,1724885162478,-2887.18,0.00039452,120]
[336505022,1724885162520,-500.0,0.00039452,120]
[336505023,1724885162561,-500.0,0.00039452,120]
[336505024,1724885162602,-500.0,0.00039452,120]
[336505025,1724885162645,-1168.64,0.00039452,120]
[336505026,1724885162689,-509.66,0.00039452,120]
[336505027,1724885162731,-500.0,0.00039452,120]
[336505028,1724885162772,-1079.75,0.00039452,120]
[336505029,1724885162813,-987.94,0.00039452,120]
[336505030,1724885162856,-6286.38,0.00039452,120]
[336505031,1724885162900,-500.0,0.00039452,120]
[336505032,1724885162945,-959.62,0.00039452,120]
[336505033,1724885162996,-500.0,0.00039452,120]
[336505034,1724885163042,-500.0,0.00039452,120]
[336505035,1724885163091,-626.06,0.00039452,120]
[336505036,1724885163139,-861.0,0.00039452,120]
[336505037,1724885163185,-6914.62,0.00039452,120]
[336505038,1724885163235,-3347.76,0.00039452,120]
[336505039,1724885163280,-500.0,0.00039452,120]
[336505040,1724885163326,-908.93,0.00039452,120]
[336505041,1724885163374,-4335.53,0.00039452,120]
[336505042,1724885163419,-733.36,0.00039452,120]
[336505043,1724885163464,-516.34481954,0.00039452,120]
[336505044,1724885163508,-500.0,0.00039452,120]
[336505045,1724885163552,-1047.3,0.00039452,120]
[336505046,1724885163598,-1797.01,0.00039452,120]
[336505047,1724885163643,-500.0,0.00039452,120]
[336505048,1724885163687,-582.75,0.00039452,120]
[336505049,1724885163734,-2094.86,0.00039452,120]
[336505050,1724885163780,-750.43,0.00039452,120]
[336505051,1724885163827,-1362.13,0.00039452,120]
[336505052,1724885163882,-1379.04,0.00039452,120]
[336505053,1724885163928,-500.0,0.00039452,120]
[336505054,1724885163976,-500.0,0.00039452,120]
[336505055,1724885164022,-1349.27,0.00039452,120]
[336505056,1724885164073,-1564.42,0.00039452,120]
[336505057,1724885164121,-1334.43,0.00039452,120]
[336505058,1724885164168,-822.87,0.00039452,120]
[336505059,1724885164217,-1022.85,0.00039452,120]
[336505060,1724885164264,-500.0,0.00039452,120]
[336505061,1724885164310,-976.33,0.00039452,120]
[336505062,1724885164357,-500.0,0.00039452,120]
[336505063,1724885164403,-656.65,0.00039452,120]
[336505064,1724885164457,-500.0,0.00039452,120]
[336505065,1724885164506,-2066.86,0.00039452,120]
[336505066,1724885164553,-2165.19,0.00039452,120]
[336505067,1724885164599,-500.0,0.00039452,120]
[336505068,1724885164644,-154.68539,0.00039452,120]
[336505069,1724885164691,-582.22,0.00039452,120]
[336505070,1724885164737,-956.93,0.00039452,120]
[336505071,1724885164784,-500.0,0.00039452,120]
[336505072,1724885164831,-1014.77,0.00039452,120]
[336505073,1724885164878,-500.0,0.00039452,120]
[336505074,1724885164928,-1088.43,0.00039452,120]
[336505075,1724885164976,-1629.12,0.00039452,120]
[336505076,1724885165023,-500.0,0.00039452,120]
[336505077,1724885165070,-511.89,0.00039452,120]
[336505078,1724885165118,-500.0,0.00039452,120]
[336505079,1724885165167,-4067.41,0.00039452,120]
[336505080,1724885165213,-1468.53,0.00039452,120]
[336505081,1724885165258,-784.11,0.00039452,120]
[336505082,1724885165303,-2768.98,0.00039452,120]
[336505083,1724885165349,-2025.24,0.00039452,120]
[336505084,1724885165394,-2688.39,0.00039452,120]
[336505085,1724885165439,-592.64,0.00039452,120]
[336505086,1724885165485,-500.0,0.00039452,120]
[336505087,1724885165529,-2704.08,0.00039452,120]
[336505088,1724885165577,-500.0,0.00039452,120]
[336505089,1724885165624,-500.0,0.00039452,120]
[336505090,1724885165672,-1527.67,0.00039452,120]
[336505091,1724885165720,-852.5,0.00039452,120]
[336505092,1724885165771,-500.0,0.00039452,120]
[336505093,1724885165821,-3763.91,0.00039452,120]
[336505094,1724885165872,-681.13,0.00039452,120]
[336505095,1724885165919,-500.0,0.00039452,120]
[336505096,1724885165968,-879.46,0.00039452,120]
[336505097,1724885166016,-5219.13,0.00039452,120]
[336505098,1724885166068,-699.45,0.00039452,120]
[336505099,1724885166115,-1639.18,0.00039452,120]
[336505100,1724885166168,-500.0,0.00039452,120]
[336505101,1724885166214,-1528.12,0.00039452,120]
[336505102,1724885166261,-2675.57,0.00039452,120]
[336505103,1724885166306,-500.0,0.00039452,120]
[336505104,1724885166350,-500.0,0.00039452,120]
[336505105,1724885166396,-500.0,0.00039452,120]
[336505106,1724885166441,-156.16,0.00039452,120]
[336505107,1724885166485,-500.0,0.00039452,120]
[336505108,1724885166529,-500.0,0.00039452,120]
[336505109,1724885166572,-500.0,0.00039452,120]
[336505111,1724885166836,-580.1,0.00039452,120]
[336505112,1724885166883,-1337.75,0.00039452,120]
[336505113,1724885166931,-500.0,0.00039452,120]
[336505114,1724885166977,-500.0,0.00039452,120]
[336505115,1724885167026,-1208.83,0.00039452,120]
[336505116,1724885167074,-500.0,0.00039452,120]
[336505117,1724885167126,-500.0,0.00039452,120]
[336505118,1724885167177,-500.0,0.00039452,120]
[336505119,1724885167228,-500.0,0.00039452,120]
[336505120,1724885167277,-500.0,0.00039452,120]
[336505121,1724885167324,-500.0,0.00039452,120]
[336505122,1724885167376,-1049.13,0.00039452,120]
[336505123,1724885167427,-184.71,0.00039452,120]
[336505124,1724885167478,-1767.75,0.00039452,120]
[336505125,1724885167526,-500.0,0.00039452,120]
[336505126,1724885167575,-2859.72,0.00039452,120]
[336505127,1724885167624,-987.6,0.00039452,120]
[336505128,1724885167678,-500.0,0.00039452,120]
[336505129,1724885167733,-1188.95,0.00039452,120]
[336505130,1724885167785,-500.0,0.00039452,120]
[336505131,1724885167840,-1237.97,0.00039452,120]
[336505132,1724885167905,-2836.35,0.00039452,120]
[336505133,1724885167966,-2754.45,0.00039452,120]
[336505134,1724885168017,-737.83,0.00039452,120]
[336505135,1724885168068,-500.0,0.00039452,120]
[336505136,1724885168116,-500.0,0.00039452,120]
[336505137,1724885168173,-2434.07,0.00039452,120]
[336505138,1724885168227,-500.0,0.00039452,120]
[336505139,1724885168278,-605.2,0.00039452,120]
[336505140,1724885168330,-150.0,0.00039466,120]
[336505141,1724885168378,-150.0,0.00039491,120]
[336505142,1724885168425,-21835.0,0.000395,120]
[336505143,1724885168474,-150.0,0.00039519,120]
[336505144,1724885168522,-150.0,0.00039527,120]
[336505145,1724885168580,-151.0,0.00039589,120]
[336505146,1724885168629,-150.0,0.00039631,120]
[336505147,1724885168677,-150.0,0.00039647,120]
[336505148,1724885168726,-103942.78597749,0.000397,120]
[336505149,1724885168774,-500.0,0.00039726,120]
[336505150,1724885168821,-500.0,0.00039726,120]
[336505151,1724885168869,-665.7,0.00039726,120]
[336505152,1724885168921,-1637.12,0.00039726,120]
[336505153,1724885168971,-500.0,0.00039726,120]
[336505154,1724885169022,-500.0,0.00039726,120]
[336505155,1724885169073,-1890.25,0.00039726,120]
[336505156,1724885169132,-500.0,0.00039726,120]
[336505157,1724885169185,-1232.49,0.00039726,120]
[336505158,1724885169233,-500.0,0.00039726,120]
[336505159,1724885169279,-500.0,0.00039726,120]
[336505160,1724885169325,-1152.38,0.00039726,120]
[336505161,1724885169373,-500.0,0.00039726,120]
[336505162,1724885169419,-1560.58,0.00039726,120]
[336505163,1724885169466,-1202.28,0.00039726,120]
[336505164,1724885169513,-2893.43,0.00039726,120]
[336505165,1724885169559,-500.0,0.00039726,120]
[336505166,1724885169611,-500.0,0.00039726,120]
[336505167,1724885169666,-517.23157085,0.00039726,120]
[336505168,1724885169714,-1236.34,0.00039726,120]
[336505169,1724885169763,-682.55,0.00039726,120]
[336505170,1724885169811,-684.68,0.00039726,120]
[336505171,1724885169859,-771.76,0.00039726,120]
[336505172,1724885169905,-784.83,0.00039726,120]
[336505173,1724885169967,-500.0,0.00039726,120]
[336505174,1724885170016,-500.0,0.00039726,120]
[336505175,1724885170067,-956.56,0.00039726,120]
[336505176,1724885170112,-573.85,0.00039726,120]
[336505177,1724885170168,-500.0,0.00039726,120]
[336505178,1724885170214,-668.17,0.00039726,120]
[336505179,1724885170261,-1716.27,0.00039726,120]
[336505180,1724885170307,-1114.77,0.00039726,120]
[336505181,1724885170351,-2014.95,0.00039726,120]
[336505182,1724885170396,-208.50623848,0.00039726,120]
[336505183,1724885170441,-523.63,0.00039726,120]
[336505184,1724885170488,-548.63,0.00039726,120]
[336505185,1724885170533,-500.0,0.00039726,120]
[336505186,1724885170579,-665.94,0.00039726,120]
[336505187,1724885170622,-929.68,0.00039726,120]
[336505188,1724885170666,-1229.1,0.00039726,120]
[336505189,1724885170707,-615.75,0.00039726,120]
[336505190,1724885170750,-152.56892109,0.00039726,120]
[336505191,1724885170793,-970.13,0.00039726,120]
[336505192,1724885170835,-500.0,0.00039726,120]
[336505193,1724885170876,-500.0,0.00039726,120]
[336505194,1724885170923,-500.0,0.00039726,120]
[336505195,1724885170968,-1984.75,0.00039726,120]
[336505196,1724885171013,-1122.0,0.00039726,120]
[336505197,1724885171063,-2199.85,0.00039726,120]
[336505198,1724885171108,-1901.82,0.00039726,120]
[336505199,1724885171155,-500.0,0.00039726,120]
[336505200,1724885171203,-1482.11,0.00039726,120]
[336505201,1724885171247,-500.0,0.00039726,120]
[336505202,1724885171289,-623.17,0.00039726,120]
[336505203,1724885171331,-1335.08,0.00039726,120]
[336505204,1724885171375,-756.9,0.00039726,120]
[336505205,1724885171417,-500.0,0.00039726,120]
[336505206,1724885171458,-846.34,0.00039726,120]
[336505207,1724885171499,-500.0,0.00039726,120]
[336505208,1724885171538,-500.0,0.00039726,120]
[336505209,1724885171579,-500.0,0.00039726,120]
[336505210,1724885171622,-2503.52,0.00039726,120]
[336505211,1724885171673,-574.01,0.00039726,120]
[336505212,1724885171714,-1905.76,0.00039726,120]
[336505213,1724885171757,-300.0,0.00039726,120]
[336505214,1724885171797,-511.67,0.00039726,120]
[336505215,1724885172076,-727.7,0.00039726,120]
[336505216,1724885172120,-701.84,0.00039726,120]
[336505217,1724885172175,-2965.69,0.00039726,120]
[336505218,1724885172228,-1006.37,0.00039726,120]
[336505219,1724885172270,-500.0,0.00039726,120]
[336505220,1724885172313,-500.0,0.00039726,120]
[336505221,1724885172356,-312.0090423,0.00039726,120]
[336505222,1724885172398,-591.01,0.00039726,120]
[336505223,1724885172439,-2737.03,0.00039726,120]
[336505224,1724885172480,-500.0,0.00039726,120]
[336505225,1724885172520,-500.0,0.00039726,120]
[336505226,1724885172558,-851.97,0.00039726,120]
[336505227,1724885172600,-500.0,0.00039726,120]
[336505228,1724885172642,-500.0,0.00039726,120]
[336505229,1724885172683,-892.0,0.00039726,120]
[336505230,1724885172726,-1003.05,0.00039726,120]
[336505231,1724885172769,-500.0,0.00039726,120]
[336505232,1724885172812,-500.0,0.00039726,120]
[336505233,1724885172855,-582.59,0.00039726,120]
[336505234,1724885172898,-500.0,0.00039726,120]
[336505235,1724885172940,-500.0,0.00039726,120]
[336505236,1724885172988,-1073.06,0.00039726,120]
[336505237,1724885173033,-1617.64,0.00039726,120]
[336505238,1724885173075,-500.0,0.00039726,120]
[336505239,1724885173119,-500.0,0.00039726,120]
[336505240,1724885173163,-500.0,0.00039726,120]
[336505241,1724885173206,-655.16,0.00039726,120]
[336505242,1724885173249,-861.75,0.00039726,120]
[336505243,1724885173293,-735.62,0.00039726,120]
[336505244,1724885173337,-1526.14,0.00039726,120]
[336505245,1724885173381,-872.22,0.00039726,120]
[336505246,1724885173428,-621.52,0.00039726,120]
[336505247,1724885173469,-580.64,0.00039726,120]
[336505248,1724885173520,-747.48,0.00039726,120]
[336505249,1724885173571,-527.87,0.00039726,120]
[336505250,1724885173623,-967.11,0.00039726,120]
[336505251,1724885173666,-502.34097889,0.00039726,120]
[336505252,1724885173706,-500.0,0.00039726,120]
[336505253,1724885173746,-536.35,0.00039726,120]
[336505254,1724885173790,-836.71,0.00039726,120]
[336505255,1724885173832,-500.0,0.00039726,120]
[336505256,1724885173877,-812.54,0.00039726,120]
[336505257,1724885173924,-693.4,0.00039726,120]
[336505258,1724885173968,-979.14,0.00039726,120]
[336505259,1724885174021,-500.0,0.00039726,120]
[336505260,1724885174068,-737.06,0.00039726,120]
[336505261,1724885174112,-500.0,0.00039726,120]
[336505262,1724885174158,-901.28,0.00039726,120]
[336505263,1724885174204,-601.1,0.00039726,120]
[336505264,1724885174247,-500.0,0.00039726,120]
[336505265,1724885174288,-500.0,0.00039726,120]
[336505266,1724885174333,-500.0,0.00039726,120]
[336505267,1724885174380,-557.6,0.00039726,120]
[336505268,1724885174425,-500.0,0.00039726,120]
[336505269,1724885174476,-562.83,0.00039726,120]
[336505270,1724885174525,-500.0,0.00039726,120]
[336505271,1724885174572,-2883.89,0.00039726,120]
[336505272,1724885174616,-500.0,0.00039726,120]
[336505273,1724885174663,-581.3,0.00039726,120]
[336505274,1724885174709,-500.0,0.00039726,120]
[336505275,1724885174754,-500.0,0.00039726,120]
[336505276,1724885174798,-500.0,0.00039726,120]
[336505277,1724885174843,-845.82,0.00039726,120]
[336505278,1724885174888,-767.15,0.00039726,120]
[336505279,1724885174934,-526.57,0.00039726,120]
[336505280,1724885174980,-950.29,0.00039726,120]
[336505281,1724885175024,-963.87,0.00039726,120]
[336505282,1724885175070,-500.0,0.00039726,120]
[336505283,1724885175115,-1786.17,0.00039726,120]
[336505284,1724885175159,-588.75,0.00039726,120]
[336505285,1724885175211,-500.0,0.00039726,120]
[336505286,1724885175255,-500.0,0.00039726,120]
[336505287,1724885175307,-632.95,0.00039726,120]
[336505288,1724885175355,-681.27,0.00039726,120]
[336505289,1724885175397,-500.0,0.00039726,120]
[336505290,1724885175439,-645.73,0.00039726,120]
[336505291,1724885175482,-500.0,0.00039726,120]
[336505292,1724885175523,-500.0,0.00039726,120]
[336505293,1724885175566,-735.99,0.00039726,120]
[336505294,1724885175609,-648.62,0.00039726,120]
[336505295,1724885175651,-500.0,0.00039726,120]
[336505296,1724885175691,-500.0,0.00039726,120]
[336505297,1724885175731,-500.0,0.00039726,120]
[336505298,1724885175774,-500.0,0.00039726,120]
[336505299,1724885175817,-616.04,0.00039726,120]
[336505300,1724885175866,-500.0,0.00039726,120]
[336505301,1724885175912,-500.0,0.00039726,120]
[336505302,1724885175960,-2439.04,0.00039726,120]
[336505303,1724885176006,-500.0,0.00039726,120]
[336505304,1724885176052,-500.0,0.00039726,120]
[336505305,1724885176109,-500.0,0.00039726,120]
[336505306,1724885176157,-500.0,0.00039726,120]
[336505307,1724885176216,-500.0,0.00039726,120]
[336505308,1724885176265,-546.54,0.00039726,120]
[336505309,1724885176311,-500.0,0.00039726,120]
[336505310,1724885176355,-767.27,0.00039726,120]
[336505311,1724885176400,-1649.5,0.00039726,120]
[336505312,1724885176448,-500.0,0.00039726,120]
[336505313,1724885176492,-500.0,0.00039726,120]
[336505314,1724885176537,-500.0,0.00039726,120]
[336505315,1724885176580,-920.34,0.00039726,120]
[336505316,1724885176625,-500.0,0.00039726,120]
[336505317,1724885176669,-1602.01,0.00039726,120]
[336505318,1724885176713,-500.0,0.00039726,120]
[336505319,1724885176994,-500.0,0.00039726,120]
[336505320,1724885177039,-1237.97,0.00039726,120]
[336505321,1724885177085,-695.29,0.00039726,120]
[336505322,1724885177131,-500.0,0.00039726,120]
[336505323,1724885177176,-783.4,0.00039726,120]
[336505324,1724885177223,-500.0,0.00039726,120]
[336505325,1724885177268,-500.0,0.00039726,120]
[336505326,1724885177313,-938.63,0.00039726,120]
[336505327,1724885177357,-500.0,0.00039726,120]
[336505328,1724885177400,-602.21,0.00039726,120]
[336505329,1724885177443,-1153.16,0.00039726,120]
[336505330,1724885177485,-3043.86,0.00039726,120]
[336505331,1724885177527,-500.0,0.00039726,120]
[336505332,1724885177567,-500.0,0.00039726,120]
[336505333,1724885177609,-500.0,0.00039726,120]
[336505334,1724885177650,-1459.32,0.00039726,120]
[336505335,1724885177690,-500.0,0.00039726,120]
[336505336,1724885177734,-500.0,0.00039726,120]
[336505337,1724885177776,-570.39,0.00039726,120]
[336505338,1724885177819,-765.63,0.00039726,120]
[336505339,1724885177861,-500.0,0.00039726,120]
[336505340,1724885177913,-1361.63,0.00039726,120]
[336505341,1724885177965,-826.45,0.00039726,120]
[336505342,1724885178012,-976.24,0.00039726,120]
[336505343,1724885178059,-500.0,0.00039726,120]
[336505344,1724885178112,-500.0,0.00039726,120]
[336505345,1724885178165,-500.0,0.00039726,120]
[336505346,1724885178213,-500.0,0.00039726,120]
[336505347,1724885178267,-658.32,0.00039726,120]
[336505348,1724885178314,-548.15,0.00039726,120]
[336505349,1724885178360,-956.47,0.00039726,120]
[336505350,1724885178407,-1040.07,0.00039726,120]
[336505351,1724885178450,-500.0,0.00039726,120]
[336505352,1724885178495,-625.91,0.00039726,120]
[336505353,1724885178540,-870.44,0.00039726,120]
[336505354,1724885178584,-743.88,0.00039726,120]
[336505355,1724885178629,-500.0,0.00039726,120]
[336505356,1724885178672,-837.56,0.00039726,120]
[336505357,1724885178717,-500.0,0.00039726,120]
[336505358,1724885178761,-500.0,0.00039726,120]
[336505359,1724885178805,-1149.51,0.00039726,120]
[336505360,1724885178849,-523.53,0.00039726,120]
[336505361,1724885178901,-500.0,0.00039726,120]
[336505362,1724885178945,-500.0,0.00039726,120]
[336505363,1724885179005,-500.0,0.00039726,120]
[336505364,1724885179056,-558.21,0.00039726,120]
[336505365,1724885179106,-544.32,0.00039726,120]
[336505366,1724885179154,-500.0,0.00039726,120]
[336505367,1724885179212,-779.74,0.00039726,120]
[336505368,1724885179259,-156.63492217,0.00039726,120]
[336505369,1724885179306,-1466.85,0.00039726,120]
[336505370,1724885179353,-500.0,0.00039726,120]
[336505371,1724885179400,-500.0,0.00039726,120]
[336505372,1724885179447,-557.3381928,0.00039726,120]
[336505373,1724885179493,-2093.98,0.00039726,120]
[336505374,1724885179538,-500.0,0.00039726,120]
[336505375,1724885179583,-536.15,0.00039726,120]
[336505376,1724885179632,-500.0,0.00039726,120]
[336505377,1724885179678,-500.0,0.00039726,120]
[336505378,1724885179734,-1222.21,0.00039726,120]
[336505379,1724885179783,-656.58,0.00039726,120]
[336505380,1724885179829,-348.15791599,0.00039726,120]
[336505381,1724885179877,-500.0,0.00039726,120]
[336505382,1724885179923,-500.0,0.00039726,120]
[336505383,1724885179967,-625.62,0.00039726,120]
[336505384,1724885180011,-500.0,0.00039726,120]
[336505385,1724885180058,-5139.97,0.00039726,120]
[336505386,1724885180103,-2854.89,0.00039726,120]
[336505387,1724885180147,-500.0,0.00039726,120]
[336505388,1724885180198,-1235.48,0.00039726,120]
[336505389,1724885180242,-500.0,0.00039726,120]
[336505390,1724885180285,-2541.48,0.00039726,120]
[336505391,1724885180327,-811.8,0.00039726,120]
[336505392,1724885180373,-500.0,0.00039726,120]
[336505393,1724885180415,-1000.0,0.00039726,120]
[336505394,1724885180469,-4255.4,0.00039726,120]
[336505395,1724885180515,-2305.54,0.00039726,120]
[336505396,1724885180557,-500.0,0.00039726,120]
[336505397,1724885180601,-2748.49,0.00039726,120]
[336505398,1724885180644,-668.39,0.00039726,120]
[336505399,1724885180690,-500.0,0.00039726,120]
[336505400,1724885180735,-722.98,0.00039726,120]
[336505401,1724885180789,-500.0,0.00039726,120]
[336505402,1724885180832,-1419.39,0.00039726,120]
[336505403,1724885180874,-1983.41,0.00039726,120]
[336505404,1724885180917,-607.37,0.00039726,120]
[336505405,1724885180965,-500.0,0.00039726,120]